bitfinex/quotes_BTCUSD_20250718
["timestamp","ask_amount","ask_price","bid_price","bid_amount"]
[1752804645913,0.02291567,120220.0,120210.0,0.574294]
[1752804646187,0.33091734,120220.0,120210.0,0.38296302]
[1752804646753,0.33091734,120220.0,120210.0,8.348e-05]
[1752804647153,0.18927734,120220.0,120210.0,0.16645898]
[1752804647390,0.33079734,120220.0,120210.0,0.17477768]
[1752804647565,0.18927734,120220.0,120210.0,8.348e-05]
[1752804647765,0.34625734,120220.0,120210.0,8.348e-05]
[1752804647974,0.36171734,120220.0,120210.0,8.348e-05]
[1752804649887,0.22027734,120220.0,120210.0,8.348e-05]
[1752804650075,0.36171734,120220.0,120210.0,8.348e-05]
[1752804650759,0.18927734,120220.0,120210.0,0.17477761]
[1752804650958,0.15599753,120220.0,120210.0,0.59240393]
[1752804651200,0.01459753,120220.0,120210.0,0.59240393]
[1752804651524,0.15599753,120220.0,120210.0,0.59240393]
[1752804651937,0.16431519,120220.0,120210.0,0.59240393]
[1752804652728,0.17263292,120220.0,120210.0,0.59240393]
[1752804652977,0.01459753,120220.0,120210.0,0.59240393]
[1752804653227,0.001,120220.0,120210.0,0.68604692]
[1752804653679,0.001,120220.0,120210.0,1.03570421]
[1752804653888,0.1424,120220.0,120210.0,1.03570421]
[1752804654481,0.001,120220.0,120210.0,1.05024506]
[1752804654945,0.001,120220.0,120210.0,1.19164506]
[1752804655153,0.001,120220.0,120210.0,1.13600468]
[1752804655507,0.001,120220.0,120210.0,1.27740468]
[1752804656683,0.001,120220.0,120210.0,1.04855506]
[1752804656931,0.01142753,120220.0,120210.0,1.03401421]
[1752804657151,0.02273519,120220.0,120210.0,1.03401421]
[1752804657356,0.02273519,120220.0,120210.0,1.29421421]
[1752804657571,0.03105299,120220.0,120210.0,1.29421421]
[1752804657782,0.03105299,120220.0,120210.0,1.26211421]
[1752804658023,0.01441753,120220.0,120210.0,1.26211421]
[1752804658231,0.02273519,120220.0,120210.0,1.26211421]
[1752804658592,0.001,120220.0,120210.0,1.00191421]
[1752804658781,0.001,120220.0,120210.0,1.03341421]
[1752804659735,0.001,120220.0,120210.0,1.08291858]
[1752804661020,0.001,120220.0,120210.0,1.09914943]
[1752804661227,0.001,120220.0,120210.0,1.24194943]
[1752804661644,0.001,120220.0,120210.0,1.09914943]
[1752804661848,0.001,120220.0,120210.0,1.24190943]
[1752804662262,0.17897195,120250.0,120240.0,0.19128325]
[1752804662467,0.17276636,120250.0,120240.0,0.57416279]
[1752804663082,1e-08,120250.0,120240.0,0.91622279]
[1752804663289,1e-08,120250.0,120240.0,1.13513354]
[1752804663496,1e-08,120250.0,120240.0,1.05106392]
[1752804663700,1e-08,120250.0,120240.0,1.19358392]
[1752804664935,1e-08,120250.0,120240.0,1.05106392]
[1752804665367,1e-08,120250.0,120240.0,1.05933565]
[1752804665571,1e-08,120250.0,120240.0,1.20165565]
[1752804665773,1e-08,120250.0,120240.0,1.23320511]
[1752804665978,1e-08,120250.0,120240.0,1.09088511]
[1752804666195,1e-08,120250.0,120240.0,1.23308511]
[1752804666444,0.00200001,120250.0,120240.0,1.49324511]
[1752804666793,0.00200001,120250.0,120240.0,1.46169565]
[1752804666992,0.00200001,120250.0,120240.0,1.31953565]
[1752804667196,0.00200001,120250.0,120240.0,1.46165565]
[1752804667669,1e-08,120250.0,120240.0,1.46165565]
[1752804667890,1e-08,120250.0,120240.0,0.93665611]
[1752804668066,1e-08,120250.0,120240.0,0.92669438]
[1752804668214,1e-08,120250.0,120240.0,1.30957392]
[1752804668419,0.00200001,120250.0,120240.0,1.30957392]
[1752804668819,1e-08,120250.0,120240.0,1.30957392]
[1752804670954,1e-08,120250.0,120240.0,0.92838438]
[1752804671165,1e-08,120250.0,120240.0,1.31126392]
[1752804671375,1e-08,120250.0,120240.0,1.45454392]
[1752804674036,1e-08,120250.0,120240.0,1.31126392]
[1752804674627,1e-08,120250.0,120240.0,1.45410392]
[1752804674762,1e-08,120250.0,120240.0,1.53982354]
[1752804674961,1e-08,120250.0,120240.0,1.39702354]
[1752804675241,1e-08,120250.0,120240.0,1.54002354]
[1752804676078,1e-08,120250.0,120240.0,1.39702354]
[1752804676236,1e-08,120250.0,120240.0,1.53994354]
[1752804676651,1e-08,120250.0,120240.0,1.53982354]
[1752804676858,1e-08,120250.0,120240.0,1.53813354]
[1752804677062,1e-08,120250.0,120240.0,1.45229392]
[1752804677470,1e-08,120250.0,120240.0,1.45398392]
[1752804677932,1e-08,120250.0,120240.0,1.30957392]
[1752804678060,0.00211001,120250.0,120240.0,1.26193307]
[1752804678256,0.00510001,120250.0,120240.0,1.25987307]
[1752804678476,0.00510001,120250.0,120240.0,1.26193307]
[1752804680113,1e-08,120250.0,120240.0,1.26193307]
[1752804680595,1e-08,120250.0,120240.0,1.27793307]
[1752804680812,1e-08,120250.0,120240.0,1.29373307]
[1752804682263,1e-08,120250.0,120240.0,1.39403354]
[1752804682479,1e-08,120250.0,120240.0,1.77860308]
[1752804682694,1e-08,120250.0,120240.0,1.39572354]
[1752804682909,1e-08,120250.0,120240.0,1.45212392]
[1752804683126,1e-08,120250.0,120240.0,1.45043392]
[1752804683360,1e-08,120250.0,120240.0,1.45039392]
[1752804683567,1e-08,120250.0,120240.0,1.30827392]
[1752804683779,0.00502001,120250.0,120240.0,1.41855392]
[1752804684028,0.00502001,120250.0,120240.0,1.27647392]
[1752804684878,0.00502001,120250.0,120240.0,1.27441392]
[1752804685554,0.00746001,120250.0,120240.0,1.27441392]
[1752804686705,0.00746001,120250.0,120240.0,1.27637392]
[1752804691508,0.00746001,120250.0,120240.0,1.27441392]
[1752804691989,0.00746001,120250.0,120240.0,1.27637392]
[1752804692677,0.00746001,120250.0,120240.0,0.89349438]
[1752804692918,0.00746001,120250.0,120240.0,1.27637392]
[1752804694951,0.00244001,120250.0,120240.0,1.29197392]
[1752804695171,0.00244001,120250.0,120240.0,1.30737392]
[1752804696344,0.00244001,120250.0,120240.0,1.77770308]
[1752804696595,0.00244001,120250.0,120240.0,1.39482354]
[1752804696844,0.00244001,120250.0,120240.0,1.91910308]
[1752804697133,0.00244001,120250.0,120240.0,1.77770308]
[1752804697354,0.03573,120290.0,120280.0,0.19121964]
[1752804697580,0.00343,120290.0,120280.0,0.61151199]
[1752804697798,0.00542,120290.0,120280.0,0.61151199]
[1752804698044,0.00542,120290.0,120280.0,0.57409918]
[1752804698257,0.0004,120290.0,120280.0,1.27776946]
[1752804698699,0.00390148,120290.0,120280.0,1.29316946]
[1752804698906,0.00390148,120290.0,120280.0,1.52032908]
[1752804699111,0.00390148,120290.0,120280.0,1.53486993]
[1752804699358,0.00590148,120290.0,120280.0,1.53655993]
[1752804699559,0.00590148,120290.0,120280.0,1.53486993]
[1752804700183,0.00590148,120290.0,120280.0,1.39346993]
[1752804700383,0.01092148,120290.0,120280.0,1.25980946]
[1752804700633,0.01092148,120290.0,120280.0,1.40120946]
[1752804702317,0.01092148,120290.0,120280.0,1.25980946]
[1752804702550,0.01092148,120290.0,120280.0,1.40120946]
[1752804702767,0.0192341,120290.0,120280.0,1.40120946]
[1752804702978,0.02754679,120290.0,120280.0,1.40120946]
[1752804703186,0.0192341,120290.0,120280.0,1.40120946]
[1752804703612,0.01092148,120290.0,120280.0,1.40120946]
[1752804703809,0.0192341,120290.0,120280.0,1.40120946]
[1752804704250,0.01092148,120290.0,120280.0,1.40120946]
[1752804704718,0.02754685,120290.0,120280.0,1.40116946]
[1752804704936,0.0192341,120290.0,120280.0,1.40116946]
[1752804705713,0.02754685,120290.0,120280.0,1.01828992]
[1752804705945,0.02722148,120290.0,120280.0,0.83014763]
[1752804706199,0.01092148,120290.0,120280.0,0.79141964]
[1752804706403,0.0192341,120290.0,120280.0,0.79141964]
[1752804706613,0.0441725,120290.0,120280.0,0.79141964]
[1752804706761,0.0605725,120290.0,120280.0,0.79141964]
[1752804706970,0.05225954,120290.0,120280.0,0.79141964]
[1752804707168,0.04394679,120290.0,120280.0,1.17429918]
[1752804707408,0.05225961,120290.0,120280.0,1.17429918]
[1752804707612,0.05225961,120290.0,120280.0,0.91409918]
[1752804707828,0.05225961,120290.0,120280.0,0.34]
[1752804708036,0.06505433,120280.0,120270.0,0.18290888]
[1752804708300,0.07007433,120280.0,120270.0,0.53122302]
[1752804708513,0.37767398,120280.0,120270.0,0.34]
[1752804708724,0.36104647,120280.0,120270.0,0.17460712]
[1752804709161,0.36104647,120280.0,120270.0,0.1829216]
[1752804709380,0.36204647,120280.0,120270.0,0.1829216]
[1752804709813,0.36204647,120280.0,120270.0,0.19123594]
[1752804710021,0.36404647,120280.0,120270.0,0.19123594]
[1752804711183,0.37236012,120280.0,120270.0,0.19955008]
[1752804711395,0.19776751,120280.0,120270.0,0.19955008]
[1752804711835,0.36404619,120280.0,120270.0,0.19955008]
[1752804712044,0.37236012,120280.0,120270.0,0.19955008]
[1752804712387,0.003,120280.0,120270.0,0.33338121]
[1752804712592,0.003,120280.0,120270.0,1.13196343]
[1752804712875,0.003,120280.0,120270.0,1.27328343]
[1752804713078,0.003,120280.0,120270.0,1.67412531]
[1752804713222,0.003,120280.0,120270.0,1.59842263]
[1752804713638,0.003,120280.0,120270.0,1.45879263]
[1752804713877,0.003,120280.0,120270.0,1.60011263]
[1752804715067,0.003,120280.0,120270.0,1.1990663]
[1752804715269,0.003,120280.0,120270.0,1.0577463]
[1752804715442,0.003,120280.0,120270.0,1.28482592]
[1752804715849,0.003,120280.0,120270.0,1.14350592]
[1752804716022,0.003,120280.0,120270.0,1.1990263]
[1752804716615,0.003,120280.0,120270.0,1.4592263]
[1752804717032,0.003,120280.0,120270.0,1.4575363]
[1752804717238,0.00819,120280.0,120270.0,1.4575363]
[1752804717442,0.00819,120280.0,120270.0,1.4257363]
[1752804717652,0.00819,120280.0,120270.0,1.2844563]
[1752804717862,0.00819,120280.0,120270.0,1.4411363]
[1752804718064,0.003,120280.0,120270.0,1.4575363]
[1752804718739,0.003,120280.0,120270.0,1.54329592]
[1752804718945,0.003,120280.0,120270.0,1.4575363]
[1752804719954,0.003,120280.0,120270.0,1.3162563]
[1752804720126,0.003,120280.0,120270.0,1.4574963]
[1752804720894,0.003,120280.0,120270.0,1.3162563]
[1752804721338,0.003,120280.0,120270.0,1.4574963]
[1752804721960,0.00819,120280.0,120270.0,1.2844563]
[1752804722411,0.00819,120280.0,120270.0,1.4417963]
[1752804722614,0.00819,120280.0,120270.0,1.05912121]
[1752804722787,0.00819,120280.0,120270.0,1.4417963]
[1752804723460,0.00819,120280.0,120270.0,1.4256963]
[1752804723587,0.00819,120280.0,120270.0,1.4419963]
[1752804724017,0.003,120280.0,120270.0,1.4576963]
[1752804724229,0.003,120280.0,120270.0,1.3164563]
[1752804724594,0.003,120280.0,120270.0,1.4576563]
[1752804726846,0.003,120280.0,120270.0,1.3164563]
[1752804727017,0.003,120280.0,120270.0,1.51729762]
[1752804728283,0.003,120280.0,120270.0,1.4593063]
[1752804729598,0.003,120280.0,120270.0,1.4576163]
[1752804730060,0.003,120280.0,120270.0,1.07490121]
[1752804730454,0.003,120280.0,120270.0,1.4575763]
[1752804732814,0.001,120280.0,120270.0,1.4592663]
[1752804733013,0.001,120280.0,120270.0,1.54502592]
[1752804733215,0.001,120280.0,120270.0,1.54498592]
[1752804733459,0.00090148,120290.0,120280.0,0.23786049]
[1752804733665,0.00090148,120290.0,120280.0,0.85079586]
[1752804734273,0.00090148,120290.0,120280.0,0.96822586]
[1752804734417,0.00090148,120290.0,120280.0,1.10930586]
[1752804734623,0.00190148,120290.0,120280.0,1.10930586]
[1752804734858,0.00190148,120290.0,120280.0,0.96822586]
[1752804735079,0.00190148,120290.0,120280.0,1.51024613]
[1752804736206,0.00190148,120290.0,120280.0,1.51020613]
[1752804736442,0.00709148,120290.0,120280.0,1.47612613]
[1752804736656,0.00709148,120290.0,120280.0,1.33508613]
[1752804736880,0.00909148,120290.0,120280.0,1.47612613]
[1752804737081,0.00909148,120290.0,120280.0,1.47810613]
[1752804737457,0.00390148,120290.0,120280.0,1.49350613]
[1752804737893,0.00589148,120290.0,120280.0,0.53692992]
[1752804738096,0.23149521,120290.0,120280.0,1.16660015]
[1752804738251,0.06523036,120290.0,120280.0,1.18322738]
[1752804738461,0.05691719,120290.0,120280.0,1.19154083]
[1752804738660,0.06523022,120290.0,120280.0,1.19154083]
[1752804739976,0.07354332,120290.0,120280.0,1.19154083]
[1752804740186,0.07354332,120290.0,120280.0,0.93134083]
[1752804740406,0.08185649,120290.0,120280.0,0.93134083]
[1752804740629,0.23149563,120290.0,120280.0,0.39180768]
[1752804740853,0.19807868,120280.0,120270.0,0.43480712]
[1752804741062,0.1971143,120280.0,120270.0,0.43480712]
[1752804741245,0.2023043,120280.0,120270.0,0.4264925]
[1752804741648,0.2023043,120280.0,120270.0,0.8266148]
[1752804742514,0.2023043,120280.0,120270.0,0.83492935]
[1752804742729,0.2023043,120280.0,120270.0,0.83592935]
[1752804742937,0.2023043,120280.0,120270.0,0.84424383]
[1752804743141,0.2033043,120280.0,120270.0,0.84424383]
[1752804743326,0.2033043,120280.0,120270.0,0.65300768]
[1752804743961,0.2033043,120280.0,120270.0,0.2612]
[1752804744423,0.2033043,120280.0,120270.0,0.65300768]
[1752804744650,0.2033043,120280.0,120270.0,0.81930018]
[1752804744882,0.2033043,120280.0,120270.0,0.8276148]
[1752804745111,0.2033043,120280.0,120270.0,0.6613223]
[1752804745330,0.2033043,120280.0,120270.0,0.65300768]
[1752804745556,0.2033043,120280.0,120270.0,0.81830018]
[1752804745789,0.21061823,120280.0,120270.0,0.85155782]
[1752804746010,0.22093195,120280.0,120270.0,0.85155782]
[1752804746251,0.22093195,120280.0,120270.0,0.59135782]
[1752804747810,0.22093195,120280.0,120270.0,0.58304355]
[1752804748038,0.21261823,120280.0,120270.0,0.57472921]
[1752804748256,0.17460698,120270.0,120260.0,0.78311217]
[1752804748467,0.22424615,120270.0,120260.0,0.8349206]
[1752804748685,0.22722615,120270.0,120260.0,0.9758006]
[1752804748891,0.21891167,120270.0,120260.0,0.65200768]
[1752804749073,0.21059712,120270.0,120260.0,0.81831401]
[1752804749343,0.21059712,120270.0,120260.0,0.82662932]
[1752804749544,0.21059712,120270.0,120260.0,0.82762932]
[1752804749712,0.21059712,120270.0,120260.0,0.65300768]
[1752804749927,0.2022825,120270.0,120260.0,0.65300768]
[1752804750155,0.2022825,120270.0,120260.0,0.82762932]
[1752804750438,0.2022825,120270.0,120260.0,0.83594449]
[1752804750980,0.00499,120270.0,120260.0,0.92170411]
[1752804751188,0.02993234,120270.0,120260.0,0.46076668]
[1752804751393,0.03824675,120270.0,120260.0,0.99341436]
[1752804751603,0.02161807,120270.0,120260.0,0.99341436]
[1752804751812,0.02161807,120270.0,120260.0,0.99543436]
[1752804752066,0.02993221,120270.0,120260.0,0.73523436]
[1752804752882,0.03824642,120270.0,120260.0,0.73523436]
[1752804753083,0.04656083,120270.0,120260.0,0.73523436]
[1752804753295,0.04656131,120270.0,120260.0,0.73523436]
[1752804753669,0.02161821,120270.0,120260.0,0.73321436]
[1752804753868,0.02161821,120270.0,120260.0,0.73523436]
[1752804754075,0.00499,120270.0,120260.0,0.73523436]
[1752804754904,0.03602148,120290.0,120260.0,1.14318429]
[1752804755127,0.20175995,120290.0,120280.0,0.58302732]
[1752804755309,0.21208305,120290.0,120280.0,0.58302732]
[1752804755514,0.21506305,120290.0,120280.0,0.58302732]
[1752804755859,0.3813279,120290.0,120280.0,0.18290619]
[1752804756014,0.3813279,120290.0,120280.0,0.57471387]
[1752804756237,0.3813279,120290.0,120280.0,0.58302745]
[1752804756801,0.21473212,120290.0,120280.0,0.5913409]
[1752804757013,0.18533212,120290.0,120280.0,0.5913409]
[1752804757664,0.16870599,120290.0,120280.0,0.5913409]
[1752804757877,0.16870599,120290.0,120280.0,0.66995565]
[1752804758100,0.17697895,120290.0,120280.0,0.66995565]
[1752804758306,0.17697895,120290.0,120280.0,0.66793565]
[1752804758510,0.15204055,120290.0,120280.0,0.66793565]
[1752804758748,0.1603533,120290.0,120280.0,0.5913409]
[1752804758944,0.1603533,120290.0,120280.0,1.70227886]
[1752804758945,0.00629055,120290.0,120280.0,1.70227886]
[1752804759760,0.00629055,120290.0,120280.0,1.84303886]
[1752804759986,0.00729055,120290.0,120280.0,1.70227886]
[1752804760155,0.00729055,120290.0,120280.0,1.84303886]
[1752804761989,0.00729055,120290.0,120280.0,1.70227886]
[1752804762204,0.00729055,120290.0,120280.0,1.84299886]
[1752804762400,0.00729055,120290.0,120280.0,1.70227886]
[1752804762615,0.00729055,120290.0,120280.0,1.84299886]
[1752804764075,0.00729055,120290.0,120280.0,1.70227886]
[1752804764287,0.00729055,120290.0,120280.0,1.84299886]
[1752804764692,0.02391613,120290.0,120280.0,1.84299886]
[1752804764845,0.02391606,120290.0,120280.0,1.84299886]
[1752804765186,0.20348408,120290.0,120280.0,0.85400896]
[1752804765392,0.1868585,120290.0,120280.0,0.76647868]
[1752804765601,0.2028585,120290.0,120280.0,0.99200768]
[1752804765816,0.1868585,120290.0,120280.0,1.17491394]
[1752804766022,0.1868585,120290.0,120280.0,0.78310626]
[1752804766230,0.1868585,120290.0,120280.0,1.17491394]
[1752804766467,0.02890654,120290.0,120280.0,1.19154104]
[1752804766674,0.01228055,120290.0,120280.0,1.19356104]
[1752804766882,0.01560317,120290.0,120280.0,1.701679]
[1752804767134,0.02391592,120290.0,120280.0,1.701679]
[1752804767331,0.03222881,120290.0,120280.0,1.30987132]
[1752804767595,0.03721881,120290.0,120280.0,1.30987132]
[1752804767794,0.03721874,120290.0,120280.0,1.30987132]
[1752804768276,0.02059324,120290.0,120280.0,1.30987132]
[1752804768584,0.01228055,120290.0,120280.0,1.30987132]
[1752804768818,0.00729055,120290.0,120280.0,1.842319]
[1752804769068,0.00729055,120290.0,120280.0,1.842279]
[1752804770510,0.00729055,120290.0,120280.0,1.843969]
[1752804771467,0.00729055,120290.0,120280.0,1.71790985]
[1752804771879,0.00729055,120290.0,120280.0,1.85792135]
[1752804772057,0.0004,120300.0,120290.0,0.20574458]
[1752804772294,0.00055032,120300.0,120290.0,0.71575254]
[1752804772513,0.00055032,120300.0,120290.0,0.80320216]
[1752804772661,0.00055032,120300.0,120290.0,0.94376216]
[1752804772869,0.00055032,120300.0,120290.0,0.80320216]
[1752804773105,0.00055032,120300.0,120290.0,0.94376216]
[1752804773450,0.00055032,120300.0,120290.0,0.94576216]
[1752804775131,0.00055032,120300.0,120290.0,0.94876216]
[1752804775756,0.00055032,120300.0,120290.0,1.20896216]
[1752804780602,0.00055032,120300.0,120290.0,1.20880216]
[1752804780752,0.00055032,120300.0,120290.0,1.06840216]
[1752804780953,0.00055032,120300.0,120290.0,1.20880216]
[1752804781366,0.00055032,120300.0,120290.0,0.81699448]
[1752804781628,0.00055032,120300.0,120290.0,0.98264254]
[1752804781813,0.00055032,120300.0,120290.0,1.12304254]
[1752804782022,0.00055032,120300.0,120290.0,0.98264254]
[1752804782253,0.00055032,120300.0,120290.0,1.12300254]
[1752804782480,0.00055032,120300.0,120290.0,0.73119486]
[1752804782618,0.00055032,120300.0,120290.0,1.12300254]
[1752804782969,0.00055032,120300.0,120290.0,1.20876216]
[1752804783966,0.00055032,120300.0,120290.0,1.06840216]
[1752804784390,0.00055032,120300.0,120290.0,1.12296254]
[1752804788147,0.00055032,120300.0,120290.0,1.85473022]
[1752804789955,0.00055032,120300.0,120290.0,1.32095254]
[1752804790145,0.00055032,120300.0,120290.0,1.46288254]
[1752804791740,0.00055032,120300.0,120290.0,1.32264254]
[1752804791949,0.00055032,120300.0,120290.0,1.40840216]
[1752804792343,0.00580032,120300.0,120290.0,1.42846254]
[1752804792544,0.00580032,120300.0,120290.0,1.41392169]
[1752804792986,0.00580032,120300.0,120290.0,1.42846254]
[1752804793560,0.01411231,120300.0,120290.0,1.42846254]
[1752804793795,0.01411225,120300.0,120290.0,1.42846254]
[1752804793979,0.00580032,120300.0,120290.0,1.42846254]
[1752804794614,0.00580032,120300.0,120290.0,1.41392169]
[1752804794787,0.02220032,120300.0,120290.0,1.41392169]
[1752804795216,0.00580032,120300.0,120290.0,1.41392169]
[1752804795859,0.00580032,120300.0,120290.0,1.41388169]
[1752804796087,0.03041238,120300.0,120290.0,0.88191408]
[1752804796269,0.05522458,120300.0,120290.0,1.19652423]
[1752804796478,0.03860032,120300.0,120290.0,1.19652423]
[1752804796718,0.04691238,120300.0,120290.0,1.19652423]
[1752804796925,0.03860032,120300.0,120290.0,1.19652423]
[1752804797100,0.04691231,120300.0,120290.0,1.19652423]
[1752804797307,0.05522444,120300.0,120290.0,1.19652423]
[1752804797481,0.05522437,120300.0,120290.0,1.19352423]
[1752804797725,0.05522437,120300.0,120290.0,1.19452423]
[1752804798127,0.06353657,120300.0,120290.0,1.19452423]
[1752804798353,0.06353657,120300.0,120290.0,1.19252423]
[1752804798551,0.05522437,120300.0,120290.0,1.19352423]
[1752804798662,0.0718487,120300.0,120290.0,1.19352423]
[1752804798870,0.06353671,120300.0,120290.0,0.93332423]
[1752804799236,0.23810043,120300.0,120290.0,0.91669873]
[1752804799542,0.06353699,120300.0,120290.0,0.91669873]
[1752804799777,0.24445377,120300.0,120290.0,0.002]
[1752804800003,0.2131639,120300.0,120290.0,0.39380768]
[1752804800236,0.2131639,120300.0,120290.0,0.002]
[1752804800657,0.3532039,120300.0,120290.0,0.001]
[1752804800884,0.2131639,120300.0,120290.0,0.39280768]
[1752804801106,0.3532039,120300.0,120290.0,0.39280768]
[1752804801307,0.3532039,120300.0,120290.0,0.39180768]
[1752804801511,0.22300387,120290.0,120280.0,0.20784635]
[1752804801722,0.23333711,120290.0,120280.0,0.59965403]
[1752804801971,0.23632711,120290.0,120280.0,0.59965403]
[1752804802862,0.07006198,120290.0,120280.0,0.60065355]
[1752804804005,0.23632683,120290.0,120280.0,0.60165355]
[1752804804347,0.23632683,120290.0,120280.0,0.5933401]
[1752804804546,0.23632683,120290.0,120280.0,0.58502659]
[1752804804761,0.35970105,120290.0,120280.0,0.57671301]
[1752804805543,0.35970105,120290.0,120280.0,0.58502652]
[1752804805804,0.36801429,120290.0,120280.0,0.58502652]
[1752804806933,0.36801429,120290.0,120280.0,0.19321884]
[1752804807101,0.36801429,120290.0,120280.0,0.58502652]
[1752804808293,0.06174895,120290.0,120280.0,0.59333997]
[1752804808508,0.18500262,120290.0,120280.0,0.59333997]
[1752804809516,0.20162854,120290.0,120280.0,0.59333997]
[1752804809731,0.20166854,120290.0,120280.0,0.20153229]
[1752804809949,0.37624656,120290.0,120280.0,0.59333997]
[1752804810170,0.16986847,120290.0,120280.0,0.59333997]
[1752804810363,0.18486847,120290.0,120280.0,0.59333997]
[1752804810500,0.20006847,120290.0,120280.0,0.59333997]
[1752804810719,0.20838157,120290.0,120280.0,0.59333997]
[1752804811689,0.20006847,120290.0,120280.0,0.59333997]
[1752804812052,0.05183544,120290.0,120280.0,0.59333997]
[1752804812261,0.1999884,120290.0,120280.0,0.59333997]
[1752804812463,0.0601484,120290.0,120280.0,0.59333997]
[1752804812695,0.19167544,120290.0,120280.0,0.59333997]
[1752804812910,0.1999884,120290.0,120280.0,0.59333997]
[1752804813305,0.1847884,120290.0,120280.0,0.59333997]
[1752804813508,0.1931015,120290.0,120280.0,0.59333997]
[1752804813718,0.1847884,120290.0,120280.0,0.59333997]
[1752804813911,0.1931015,120290.0,120280.0,0.59333997]
[1752804814134,0.2083015,120290.0,120280.0,0.59333997]
[1752804814352,0.1999884,120290.0,120280.0,0.59333997]
[1752804814772,0.20830157,120290.0,120280.0,0.59333997]
[1752804816036,0.24303966,120290.0,120280.0,0.57671301]
[1752804816242,0.38279966,120290.0,120280.0,0.58502659]
[1752804816473,0.1999084,120290.0,120280.0,0.59334004]
[1752804816662,0.2082215,120290.0,120280.0,0.59334004]
[1752804816882,0.38279959,120290.0,120280.0,0.59334004]
[1752804817525,0.37448697,120290.0,120280.0,0.58502659]
[1752804817677,0.37448697,120290.0,120280.0,0.57671301]
[1752804818313,0.37448697,120290.0,120280.0,0.58502659]
[1752804818551,0.20822212,120290.0,120280.0,0.5933401]
[1752804818749,0.37448697,120290.0,120280.0,0.5923401]
[1752804818982,0.37448697,120290.0,120280.0,0.5933401]
[1752804819179,0.19990888,120290.0,120280.0,0.60165355]
[1752804819665,0.20822205,120290.0,120280.0,0.60065355]
[1752804820197,0.20822205,120290.0,120280.0,0.001]
[1752804820198,0.21810112,120290.0,120280.0,0.001]
[1752804820406,0.22233574,120270.0,120260.0,0.5664293]
[1752804820612,0.36399574,120270.0,120260.0,0.5747444]
[1752804820825,0.36698574,120270.0,120260.0,0.58305944]
[1752804821057,0.36698574,120270.0,120260.0,0.59137441]
[1752804821473,0.36698574,120270.0,120260.0,0.59968931]
[1752804821687,0.36698574,120270.0,120260.0,0.60168931]
[1752804821893,0.36698574,120270.0,120260.0,0.60993246]
[1752804822134,0.2006931,120270.0,120260.0,0.60993198]
[1752804822343,0.37530015,120270.0,120260.0,0.60993198]
[1752804822561,0.37530015,120270.0,120260.0,0.593374]
[1752804822788,0.38361477,120270.0,120260.0,0.593374]
[1752804823134,0.38361477,120270.0,120260.0,0.5767444]
[1752804823362,0.21903167,120270.0,120260.0,0.39380768]
[1752804823582,0.35863167,120270.0,120260.0,0.39380768]
[1752804824015,0.3420025,120270.0,120260.0,0.56842925]
[1752804824242,0.19233875,120270.0,120260.0,0.59344567]
[1752804824453,0.20065323,120270.0,120260.0,0.6017605]
[1752804824664,0.3835749,120270.0,120260.0,0.59337422]
[1752804825089,0.3674749,120270.0,120260.0,0.59337422]
[1752804825304,0.35916056,120270.0,120260.0,0.58505952]
[1752804825514,0.21956056,120270.0,120260.0,0.58505952]
[1752804825736,0.35916056,120270.0,120260.0,0.59337456]
[1752804826544,0.67742664,120270.0,120260.0,0.002]
[1752804826765,0.21546717,120240.0,120230.0,0.65200768]
[1752804826974,0.21748717,120240.0,120230.0,0.56647283]
[1752804827197,0.35999717,120240.0,120230.0,0.5664729]
[1752804827828,0.35999717,120240.0,120230.0,0.39180768]
[1752804828044,0.35999717,120240.0,120230.0,0.39230916]
[1752804828299,0.35999717,120240.0,120230.0,0.17616656]
[1752804828521,0.35999717,120240.0,120230.0,0.18448374]
[1752804828711,0.35999717,120240.0,120230.0,0.54297424]
[1752804828977,0.35999717,120240.0,120230.0,0.55129142]
[1752804829220,0.35999717,120240.0,120230.0,0.16048374]
[1752804829447,0.35999717,120240.0,120230.0,0.55229135]
[1752804830724,0.35168068,120240.0,120230.0,0.54397424]
[1752804831160,0.35168068,120240.0,120230.0,0.53565699]
[1752804831382,0.34336399,120240.0,120230.0,0.002]
[1752804831815,0.34336399,120240.0,120230.0,0.39380768]
[1752804832244,0.20384399,120240.0,120230.0,0.16834783]
[1752804832465,0.20384399,120240.0,120230.0,0.17666515]
[1752804832683,0.3599169,120240.0,120230.0,0.58510712]
[1752804832917,0.3599169,120240.0,120230.0,0.57679001]
[1752804833148,0.3599169,120240.0,120230.0,0.58510705]
[1752804833375,0.3599169,120240.0,120230.0,0.57679001]
[1752804833620,0.3599169,120240.0,120230.0,0.58510712]
[1752804834080,0.3599169,120240.0,120230.0,0.57679008]
[1752804834305,0.3599169,120240.0,120230.0,0.19329958]
[1752804834528,0.3599169,120240.0,120230.0,0.58510726]
[1752804834753,0.35156055,120240.0,120230.0,0.5684729]
[1752804834985,0.35156055,120240.0,120230.0,0.57679022]
[1752804835828,0.35156055,120240.0,120230.0,0.58510747]
[1752804836371,0.35156055,120240.0,120230.0,0.59342465]
[1752804836771,0.34324399,120240.0,120230.0,0.58510747]
[1752804838065,0.04582656,120240.0,120230.0,0.58510747]
[1752804838270,0.33565359,120240.0,120230.0,0.59342458]
[1752804838717,0.32733724,120240.0,120230.0,0.58510747]
[1752804838938,0.32733724,120240.0,120230.0,0.59342465]
[1752804838939,0.31902068,120240.0,120230.0,0.59342465]
[1752804839384,0.31902068,120240.0,120230.0,0.60174176]
[1752804841059,0.31902068,120240.0,120230.0,0.20161697]
[1752804841292,0.31902068,120240.0,120230.0,0.59342465]
[1752804841705,0.31902068,120240.0,120230.0,0.60174169]
[1752804841929,0.15268649,120240.0,120230.0,0.60174127]
[1752804842145,0.16927933,120240.0,120230.0,0.60174085]
[1752804842355,0.20461001,120240.0,120230.0,0.60174085]
[1752804842594,0.34389001,120240.0,120230.0,0.60174085]
[1752804842810,0.34389001,120240.0,120230.0,0.59342395]
[1752804843471,0.16923933,120240.0,120230.0,0.60174085]
[1752804843699,0.00831607,120240.0,120230.0,0.21199317]
[1752804843950,0.01152566,120250.0,120240.0,0.19128325]
[1752804844164,0.19270153,120250.0,120240.0,0.58309093]
[1752804844848,0.22809762,120250.0,120240.0,0.57477472]
[1752804845093,0.36733762,120250.0,120240.0,0.57477486]
[1752804845349,0.36733762,120250.0,120240.0,0.58309135]
[1752804845565,0.36733762,120250.0,120240.0,0.19960002]
[1752804845789,0.22909762,120250.0,120240.0,0.58309135]
[1752804846000,0.36833762,120250.0,120240.0,0.5914077]
[1752804847069,0.34339016,120250.0,120240.0,0.39180768]
[1752804847725,0.16633399,120240.0,120230.0,0.18298212]
[1752804847920,0.16845399,120240.0,120230.0,0.18298212]
[1752804848054,0.17166399,120240.0,120230.0,0.18298212]
[1752804848261,0.20492953,120240.0,120230.0,0.19129902]
[1752804848477,0.21324616,120240.0,120230.0,0.19129902]
[1752804848670,0.03027898,120240.0,120230.0,0.19129902]